[Event "Late-Titled-Tuesday-Blitz-May-07-2024"]
[Site "Chess.com"]
[Date "2024.05.07"]
[Round "4"]
[White "aa175"]
[Black "alexrustemov"]
[Result "1-0"]
[WhiteElo "2745"]
[BlackElo "2921"]
[TimeControl "180+1"]
[EndTime "14:38:31 PDT"]
[Termination "aa175 won on time"]

1. d4 {[%clk 0:03:00.9]} 1... d5 {[%clk 0:02:59.3]} 2. Bf4 {[%clk 0:03:00.8]}
2... Nf6 {[%clk 0:02:58.9]} 3. e3 {[%clk 0:03:01.2]} 3... c5 {[%clk 0:02:59]} 4.
Nf3 {[%clk 0:03:00.9]} 4... Nc6 {[%clk 0:02:59.3]} 5. Nbd2 {[%clk 0:03:00.9]}
5... Bg4 {[%clk 0:02:59.7]} 6. c3 {[%clk 0:02:57.5]} 6... e6 {[%clk 0:03:00]} 7.
Qa4 {[%clk 0:02:57.7]} 7... Nd7 {[%clk 0:02:59]} 8. Ne5 {[%clk 0:02:57.1]} 8...
Ncxe5 {[%clk 0:02:47.8]} 9. Bxe5 {[%clk 0:02:58]} 9... cxd4 {[%clk 0:01:55.8]}
10. exd4 {[%clk 0:02:35.7]} 10... a6 {[%clk 0:01:53.1]} 11. Bg3 {[%clk
0:02:29.5]} 11... Be7 {[%clk 0:01:50.7]} 12. Bd3 {[%clk 0:02:29.2]} 12... Bh5
{[%clk 0:01:45.2]} 13. Qb3 {[%clk 0:02:26.6]} 13... Qb6 {[%clk 0:01:38.6]} 14.
Qc2 {[%clk 0:02:21.6]} 14... Bg6 {[%clk 0:01:37.9]} 15. O-O {[%clk 0:02:19.8]}
15... Bxd3 {[%clk 0:01:35.6]} 16. Qxd3 {[%clk 0:02:19.7]} 16... O-O {[%clk
0:01:35.6]} 17. b3 {[%clk 0:02:17.2]} 17... Nf6 {[%clk 0:01:32.5]} 18. c4 {[%clk
0:02:17.3]} 18... dxc4 {[%clk 0:01:30.3]} 19. bxc4 {[%clk 0:02:16]} 19... Qc6
{[%clk 0:01:30.7]} 20. Rfe1 {[%clk 0:02:15.4]} 20... Rfe8 {[%clk 0:01:22.4]} 21.
Rab1 {[%clk 0:02:13.2]} 21... b5 {[%clk 0:01:20.7]} 22. cxb5 {[%clk 0:02:09.7]}
22... axb5 {[%clk 0:01:21.1]} 23. Rec1 {[%clk 0:02:08.2]} 23... Qd7 {[%clk
0:01:17.5]} 24. Rc7 {[%clk 0:02:07.4]} 24... Qd5 {[%clk 0:01:14.5]} 25. Rxb5
{[%clk 0:02:06]} 25... Qxa2 {[%clk 0:01:11.7]} 26. Rbb7 {[%clk 0:02:04.7]} 26...
Nd5 {[%clk 0:01:08.1]} 27. Rd7 {[%clk 0:02:01]} 27... Rad8 {[%clk 0:00:57.4]}
28. Nf1 {[%clk 0:01:56.4]} 28... Rxd7 {[%clk 0:00:56.1]} 29. Rxd7 {[%clk
0:01:57.3]} 29... Qa4 {[%clk 0:00:53.1]} 30. Rb7 {[%clk 0:01:56.2]} 30... Qc6
{[%clk 0:00:50]} 31. Qb3 {[%clk 0:01:53.4]} 31... h6 {[%clk 0:00:47.4]} 32. h3
{[%clk 0:01:53.5]} 32... Bf6 {[%clk 0:00:47.2]} 33. Be5 {[%clk 0:01:52.6]} 33...
Bxe5 {[%clk 0:00:43.6]} 34. dxe5 {[%clk 0:01:53.5]} 34... Qc1 {[%clk 0:00:42.9]}
35. g3 {[%clk 0:01:44.4]} 35... Rc8 {[%clk 0:00:41.5]} 36. Qf3 {[%clk
0:01:42.8]} 36... Rc7 {[%clk 0:00:35.6]} 37. Rb8+ {[%clk 0:01:43.2]} 37... Rc8
{[%clk 0:00:35.8]} 38. Rb7 {[%clk 0:01:43.9]} 38... Rf8 {[%clk 0:00:30.6]} 39.
Kg2 {[%clk 0:01:41.9]} 39... Qg5 {[%clk 0:00:29]} 40. Qe4 {[%clk 0:01:37.2]}
40... Rc8 {[%clk 0:00:25.9]} 41. Qf3 {[%clk 0:01:35.9]} 41... Qg6 {[%clk
0:00:25.4]} 42. h4 {[%clk 0:01:32.3]} 42... Rc3 {[%clk 0:00:25]} 43. h5 {[%clk
0:01:31.4]} 43... Rxf3 {[%clk 0:00:16.6]} 44. Rb8+ {[%clk 0:01:29.2]} 44... Kh7
{[%clk 0:00:04.1]} 45. hxg6+ {[%clk 0:01:30.1]} 45... Kxg6 {[%clk 0:00:02.5]}
46. Kxf3 {[%clk 0:01:30.8]} 46... Kf5 {[%clk 0:00:02.4]} 47. Ne3+ {[%clk
0:01:30.6]} 47... Kxe5 {[%clk 0:00:01.7]} 48. Nxd5 {[%clk 0:01:31.5]} 48... exd5
{[%clk 0:00:00.7]} 49. Rg8 {[%clk 0:01:32.4]} 49... Ke6 {[%clk 0:00:01.4]} 50.
Rxg7 {[%clk 0:01:32.6]} 50... Kf6 {[%clk 0:00:00.7]} 51. Rh7 {[%clk 0:01:33.5]}
51... Kg6 {[%clk 0:00:00.8]} 52. Rh8 {[%clk 0:01:34.4]} 52... Kg7 {[%clk
0:00:01.3]} 53. Rb8 {[%clk 0:01:35.3]} 53... Kf6 {[%clk 0:00:01.9]} 54. Ke3
{[%clk 0:01:36.2]} 54... Ke6 {[%clk 0:00:02.8]} 55. Kd4 {[%clk 0:01:37.1]} 55...
Kf5 {[%clk 0:00:02.4]} 56. Rh8 {[%clk 0:01:38]} 56... Kg6 {[%clk 0:00:02.1]} 57.
Kxd5 {[%clk 0:01:38.9]} 57... h5 {[%clk 0:00:02.6]} 58. Rc8 {[%clk 0:01:39.8]}
58... Kg5 {[%clk 0:00:02.9]} 59. Ke4 {[%clk 0:01:40.7]} 59... Kg4 {[%clk
0:00:02.7]} 60. Rg8+ {[%clk 0:01:37.2]} 60... Kh3 {[%clk 0:00:02.6]} 61. Kf3
{[%clk 0:01:38.1]} 61... f5 {[%clk 0:00:02.4]} 62. Rh8 {[%clk 0:01:38.4]} 62...
Kh2 {[%clk 0:00:01.9]} 63. Rxh5+ {[%clk 0:01:39]} 63... Kg1 {[%clk 0:00:02.8]}
64. Rxf5 {[%clk 0:01:39.8]} 64... Kf1 {[%clk 0:00:02.7]} 65. Rd5 {[%clk
0:01:39.5]} 65... Kg1 {[%clk 0:00:02.8]} 66. Rh5 {[%clk 0:01:39.9]} 1-0

[Event "Late-Titled-Tuesday-Blitz-May-07-2024"]
[Site "Chess.com"]
[Date "2024.05.07"]
[Round "4"]
[White "robertoalejandro10"]
[Black "youngdinousaur"]
[Result "0-1"]
[WhiteElo "2506"]
[BlackElo "2320"]
[TimeControl "180+1"]
[EndTime "14:38:41 PDT"]
[Termination "youngdinousaur won by resignation"]

1. a3 {[%clk 0:02:58.1]} 1... Nf6 {[%clk 0:02:58.6]} 2. b4 {[%clk 0:02:57.4]}
2... e6 {[%clk 0:02:59.5]} 3. Bb2 {[%clk 0:02:57.4]} 3... a5 {[%clk 0:02:58.4]}
4. c3 {[%clk 0:02:55.3]} 4... d5 {[%clk 0:02:59.3]} 5. Nf3 {[%clk 0:02:55]} 5...
axb4 {[%clk 0:02:58.9]} 6. cxb4 {[%clk 0:02:54.8]} 6... c5 {[%clk 0:02:51.9]} 7.
bxc5 {[%clk 0:02:54.6]} 7... Bxc5 {[%clk 0:02:52.8]} 8. e3 {[%clk 0:02:46.8]}
8... O-O {[%clk 0:02:51.9]} 9. d4 {[%clk 0:02:37]} 9... Bd6 {[%clk 0:02:51.5]}
10. Bd3 {[%clk 0:02:36.7]} 10... Bd7 {[%clk 0:02:51.2]} 11. O-O {[%clk
0:02:36.1]} 11... Ba4 {[%clk 0:02:50.7]} 12. Qe2 {[%clk 0:02:32.9]} 12... Nbd7
{[%clk 0:02:48.2]} 13. Nc3 {[%clk 0:02:32.3]} 13... Qe7 {[%clk 0:02:41.2]} 14.
Ne5 {[%clk 0:02:06.8]} 14... Bxe5 {[%clk 0:02:12.9]} 15. Nxa4 {[%clk 0:01:59.8]}
15... Bxh2+ {[%clk 0:01:47.6]} 16. Kxh2 {[%clk 0:01:56.2]} 16... Rxa4 {[%clk
0:01:48.2]} 17. Rfb1 {[%clk 0:01:53.1]} 17... Ne4 {[%clk 0:01:39.3]} 18. Kg1
{[%clk 0:01:29.4]} 18... Rfa8 {[%clk 0:01:37]} 19. Bc1 {[%clk 0:01:24.8]} 19...
Ndf6 {[%clk 0:01:32.2]} 20. Bb5 {[%clk 0:01:20.3]} 20... Nc3 {[%clk 0:01:25.6]}
21. Qc2 {[%clk 0:01:16.9]} 21... Nxb5 {[%clk 0:01:14.5]} 22. Rxb5 {[%clk
0:01:16.5]} 22... Ne4 {[%clk 0:01:04.1]} 23. Rab1 {[%clk 0:01:14.5]} 23... R4a7
{[%clk 0:01:01.5]} 24. Bd2 {[%clk 0:00:56.9]} 24... Nxd2 {[%clk 0:00:56.5]} 25.
Qxd2 {[%clk 0:00:56.8]} 25... g6 {[%clk 0:00:57.1]} 26. Qb4 {[%clk 0:00:53.3]}
26... Qxb4 {[%clk 0:00:56.5]} 27. R5xb4 {[%clk 0:00:51.5]} 27... Rxa3 {[%clk
0:00:52.4]} 28. Rxb7 {[%clk 0:00:51.9]} 28... R3a7 {[%clk 0:00:52.7]} 29. Rb8+
{[%clk 0:00:50.5]} 29... Rxb8 {[%clk 0:00:52.4]} 30. Rxb8+ {[%clk 0:00:51.4]}
30... Kg7 {[%clk 0:00:53]} 31. g3 {[%clk 0:00:52]} 31... Ra2 {[%clk 0:00:53]}
32. Kg2 {[%clk 0:00:52.2]} 32... h5 {[%clk 0:00:53.6]} 33. Rb7 {[%clk
0:00:51.9]} 33... Kf6 {[%clk 0:00:52.9]} 34. Rc7 {[%clk 0:00:51.7]} 34... Rb2
{[%clk 0:00:51.8]} 35. Rc8 {[%clk 0:00:51.7]} 35... Rd2 {[%clk 0:00:50.7]} 36.
Kf3 {[%clk 0:00:51.7]} 36... Rd1 {[%clk 0:00:49.7]} 37. Rh8 {[%clk 0:00:51.3]}
37... Kg7 {[%clk 0:00:48]} 38. Rd8 {[%clk 0:00:51.9]} 38... g5 {[%clk
0:00:48.1]} 39. Rd7 {[%clk 0:00:51.2]} 39... Rg1 {[%clk 0:00:46.9]} 40. e4
{[%clk 0:00:33.5]} 40... dxe4+ {[%clk 0:00:47.8]} 41. Kxe4 {[%clk 0:00:33.6]}
41... h4 {[%clk 0:00:46.4]} 42. gxh4 {[%clk 0:00:34]} 42... gxh4 {[%clk
0:00:46.8]} 43. d5 {[%clk 0:00:29.7]} 43... h3 {[%clk 0:00:34.1]} 44. dxe6
{[%clk 0:00:29.3]} 44... h2 {[%clk 0:00:34.4]} 45. Rxf7+ {[%clk 0:00:22.9]}
45... Kg6 {[%clk 0:00:34.2]} 0-1

[Event "Late-Titled-Tuesday-Blitz-May-07-2024"]
[Site "Chess.com"]
[Date "2024.05.07"]
[Round "4"]
[White "Goryachkina"]
[Black "Licancabur"]
[Result "1-0"]
[WhiteElo "2705"]
[BlackElo "2493"]
[TimeControl "180+1"]
[EndTime "14:38:45 PDT"]
[Termination "Goryachkina won on time"]

1. e4 {[%clk 0:03:00]} 1... Nf6 {[%clk 0:02:59.1]} 2. Nc3 {[%clk 0:02:57.2]}
2... d5 {[%clk 0:02:57.7]} 3. e5 {[%clk 0:02:54.3]} 3... Nfd7 {[%clk 0:02:57.8]}
4. Nf3 {[%clk 0:02:51.9]} 4... c5 {[%clk 0:02:56.8]} 5. Nxd5 {[%clk 0:02:38.2]}
5... Nxe5 {[%clk 0:02:56.5]} 6. Nxe5 {[%clk 0:02:37.7]} 6... Qxd5 {[%clk
0:02:56.1]} 7. f4 {[%clk 0:02:19.1]} 7... Nc6 {[%clk 0:02:47]} 8. Bc4 {[%clk
0:01:43.1]} 8... Qe4+ {[%clk 0:02:44.5]} 9. Qe2 {[%clk 0:01:43.1]} 9... Qxe2+
{[%clk 0:02:39.6]} 10. Kxe2 {[%clk 0:01:43.1]} 10... Nxe5 {[%clk 0:02:30.5]} 11.
fxe5 {[%clk 0:01:43.2]} 11... Bg4+ {[%clk 0:02:27.7]} 12. Kf2 {[%clk 0:01:42.5]}
12... e6 {[%clk 0:02:06.2]} 13. Bb5+ {[%clk 0:01:38.7]} 13... Kd8 {[%clk
0:02:04.5]} 14. Rf1 {[%clk 0:01:37.5]} 14... Kc7 {[%clk 0:02:02]} 15. Kg1 {[%clk
0:01:37]} 15... Bf5 {[%clk 0:02:01.9]} 16. d3 {[%clk 0:01:32]} 16... a6 {[%clk
0:02:00.6]} 17. Bc4 {[%clk 0:01:32]} 17... b5 {[%clk 0:02:00.4]} 18. Bb3 {[%clk
0:01:32.3]} 18... Be7 {[%clk 0:01:56.4]} 19. Be3 {[%clk 0:01:27.6]} 19... Rhd8
{[%clk 0:01:41.1]} 20. a4 {[%clk 0:01:25.3]} 20... Kc6 {[%clk 0:01:36.3]} 21.
Rf3 {[%clk 0:01:17.4]} 21... h6 {[%clk 0:01:31.9]} 22. h3 {[%clk 0:01:15.1]}
22... Bh4 {[%clk 0:01:02.9]} 23. Raf1 {[%clk 0:01:10.9]} 23... Bg5 {[%clk
0:01:00.3]} 24. Bxg5 {[%clk 0:00:57.7]} 24... hxg5 {[%clk 0:01:00.3]} 25. Rg3
{[%clk 0:00:58.1]} 25... f6 {[%clk 0:00:56.9]} 26. exf6 {[%clk 0:00:56]} 26...
gxf6 {[%clk 0:00:56.5]} 27. Re3 {[%clk 0:00:56.2]} 27... Rd4 {[%clk 0:00:18.9]}
28. axb5+ {[%clk 0:00:51]} 28... axb5 {[%clk 0:00:18.4]} 29. Bxe6 {[%clk
0:00:44]} 29... Bxe6 {[%clk 0:00:11.1]} 30. Rxe6+ {[%clk 0:00:44.9]} 30... Rd6
{[%clk 0:00:10.1]} 31. Rfxf6 {[%clk 0:00:43.2]} 31... Rxe6 {[%clk 0:00:07.7]}
32. Rxe6+ {[%clk 0:00:43.5]} 32... Kd5 {[%clk 0:00:06.1]} 33. Rg6 {[%clk
0:00:40.1]} 33... Ra2 {[%clk 0:00:05.2]} 34. Rxg5+ {[%clk 0:00:39.9]} 34... Kd6
{[%clk 0:00:04.2]} 35. d4 {[%clk 0:00:31.4]} 1-0

[Event "Late-Titled-Tuesday-Blitz-May-07-2024"]
[Site "Chess.com"]
[Date "2024.05.07"]
[Round "4"]
[White "nitpicker"]
[Black "Dr_troll"]
[Result "0-1"]
[WhiteElo "2274"]
[BlackElo "2550"]
[TimeControl "180+1"]
[EndTime "14:38:46 PDT"]
[Termination "Dr_troll won on time"]

1. d4 {[%clk 0:03:00.9]} 1... Nf6 {[%clk 0:02:58.5]} 2. c4 {[%clk 0:03:00.9]}
2... c5 {[%clk 0:02:56.4]} 3. d5 {[%clk 0:03:00.5]} 3... g6 {[%clk 0:02:56.5]}
4. Nc3 {[%clk 0:02:59.4]} 4... Bg7 {[%clk 0:02:57]} 5. e4 {[%clk 0:02:59.3]}
5... d6 {[%clk 0:02:57.1]} 6. h3 {[%clk 0:02:59.6]} 6... O-O {[%clk 0:02:57.8]}
7. Nf3 {[%clk 0:02:59.4]} 7... a6 {[%clk 0:02:58]} 8. Bd3 {[%clk 0:02:59.3]}
8... b5 {[%clk 0:02:58.2]} 9. O-O {[%clk 0:02:44.7]} 9... b4 {[%clk 0:02:48]}
10. Ne2 {[%clk 0:02:43.5]} 10... Nbd7 {[%clk 0:02:41.5]} 11. Qc2 {[%clk
0:02:38.9]} 11... a5 {[%clk 0:02:41.2]} 12. Bf4 {[%clk 0:02:37.2]} 12... a4
{[%clk 0:02:41.4]} 13. a3 {[%clk 0:02:25.8]} 13... Qb6 {[%clk 0:02:35.8]} 14. g4
{[%clk 0:02:16]} 14... h5 {[%clk 0:02:27.3]} 15. g5 {[%clk 0:01:39.6]} 15... Ne8
{[%clk 0:02:25.6]} 16. Rab1 {[%clk 0:01:32.7]} 16... Ne5 {[%clk 0:02:07.1]} 17.
Bxe5 {[%clk 0:01:21.3]} 17... dxe5 {[%clk 0:02:01.5]} 18. Kh2 {[%clk 0:01:18.9]}
18... f5 {[%clk 0:01:59.7]} 19. gxf6 {[%clk 0:01:16]} 19... Rxf6 {[%clk
0:01:53.2]} 20. Ng5 {[%clk 0:01:11.2]} 20... Bh6 {[%clk 0:01:49.3]} 21. h4
{[%clk 0:01:07.3]} 21... Nd6 {[%clk 0:01:34.7]} 22. Rbe1 {[%clk 0:01:00.8]}
22... Bd7 {[%clk 0:01:31.9]} 23. f4 {[%clk 0:00:59.9]} 23... Raf8 {[%clk
0:01:31]} 24. Rg1 {[%clk 0:00:47.2]} 24... Nf7 {[%clk 0:00:59.5]} 25. f5 {[%clk
0:00:37.9]} 25... Kh8 {[%clk 0:00:28.1]} 26. Ng3 {[%clk 0:00:24.4]} 26... Nxg5
{[%clk 0:00:25.4]} 27. hxg5 {[%clk 0:00:20.7]} 27... Bxg5 {[%clk 0:00:26.3]} 28.
Ref1 {[%clk 0:00:19.4]} 28... Bf4 {[%clk 0:00:25]} 29. Qe2 {[%clk 0:00:12.1]}
29... h4 {[%clk 0:00:22.5]} 30. Rxf4 {[%clk 0:00:06.1]} 30... hxg3+ {[%clk
0:00:21]} 31. Rxg3 {[%clk 0:00:05.3]} 31... exf4 {[%clk 0:00:21.1]} 32. Rh3+
{[%clk 0:00:05.9]} 32... Kg7 {[%clk 0:00:20.6]} 33. e5 {[%clk 0:00:06.4]} 33...
Rxf5 {[%clk 0:00:18.9]} 34. e6 {[%clk 0:00:06.7]} 34... Bxe6 {[%clk 0:00:18.6]}
35. dxe6 {[%clk 0:00:05.7]} 35... Qd6 {[%clk 0:00:18.2]} 36. Rf3 {[%clk
0:00:01.4]} 36... Rg5 {[%clk 0:00:17.4]} 0-1

[Event "Late-Titled-Tuesday-Blitz-May-07-2024"]
[Site "Chess.com"]
[Date "2024.05.07"]
[Round "4"]
[White "IndianSchoolOfSuffering"]
[Black "lupta_robin"]
[Result "1-0"]
[WhiteElo "2415"]
[BlackElo "2656"]
[TimeControl "180+1"]
[EndTime "14:38:48 PDT"]
[Termination "IndianSchoolOfSuffering won by resignation"]

1. e4 {[%clk 0:03:00.9]} 1... g6 {[%clk 0:02:58.6]} 2. d4 {[%clk 0:03:00.4]}
2... Nf6 {[%clk 0:02:59]} 3. e5 {[%clk 0:02:58.5]} 3... Nh5 {[%clk 0:02:59.1]}
4. Nf3 {[%clk 0:02:57.7]} 4... d6 {[%clk 0:02:59.5]} 5. Bc4 {[%clk 0:02:48.4]}
5... Nc6 {[%clk 0:02:49.6]} 6. exd6 {[%clk 0:02:43]} 6... Qxd6 {[%clk
0:02:34.4]} 7. c3 {[%clk 0:02:39.3]} 7... Bg7 {[%clk 0:02:33.2]} 8. O-O {[%clk
0:02:36.1]} 8... O-O {[%clk 0:02:32.9]} 9. h3 {[%clk 0:02:35.1]} 9... e5 {[%clk
0:02:16.5]} 10. dxe5 {[%clk 0:02:32.9]} 10... Qxd1 {[%clk 0:02:15.3]} 11. Rxd1
{[%clk 0:02:32.9]} 11... Nxe5 {[%clk 0:02:15.9]} 12. Nxe5 {[%clk 0:02:32.1]}
12... Bxe5 {[%clk 0:02:16.8]} 13. Be3 {[%clk 0:02:26]} 13... Re8 {[%clk
0:02:07.8]} 14. Nd2 {[%clk 0:02:25]} 14... Be6 {[%clk 0:02:01.6]} 15. Bxe6
{[%clk 0:02:21]} 15... Rxe6 {[%clk 0:02:02.5]} 16. Nc4 {[%clk 0:02:20.1]} 16...
Bg7 {[%clk 0:01:48.2]} 17. Rd7 {[%clk 0:02:18.7]} 17... Rc8 {[%clk 0:01:42.9]}
18. Rad1 {[%clk 0:02:17.8]} 18... b6 {[%clk 0:01:33.8]} 19. Rd8+ {[%clk
0:02:16.1]} 19... Re8 {[%clk 0:01:32.6]} 20. Rxe8+ {[%clk 0:02:10]} 20... Rxe8
{[%clk 0:01:33.5]} 21. Rd7 {[%clk 0:02:08.3]} 21... Rc8 {[%clk 0:01:34.1]} 22.
Bg5 {[%clk 0:02:00.7]} 22... Nf6 {[%clk 0:01:27.7]} 23. Bxf6 {[%clk 0:02:00.3]}
23... Bxf6 {[%clk 0:01:28]} 24. Ne3 {[%clk 0:01:57.8]} 24... Kf8 {[%clk
0:01:20.7]} 25. f4 {[%clk 0:01:46.2]} 25... Ke8 {[%clk 0:01:17.4]} 26. Rd3
{[%clk 0:01:45.7]} 26... c6 {[%clk 0:01:06.3]} 27. Kf2 {[%clk 0:01:45.2]} 27...
Rd8 {[%clk 0:01:02.8]} 28. Rxd8+ {[%clk 0:01:43.8]} 28... Kxd8 {[%clk
0:01:03.7]} 29. Kf3 {[%clk 0:01:44.2]} 29... h5 {[%clk 0:00:58.5]} 30. g4 {[%clk
0:01:43.8]} 30... hxg4+ {[%clk 0:00:58.2]} 31. hxg4 {[%clk 0:01:44.7]} 31... Kd7
{[%clk 0:00:58.6]} 32. Ke4 {[%clk 0:01:44.6]} 32... Ke6 {[%clk 0:00:57.8]} 33.
Nc4 {[%clk 0:01:26.7]} 33... b5 {[%clk 0:00:57]} 34. f5+ {[%clk 0:01:21.9]}
34... gxf5+ {[%clk 0:00:54.4]} 35. gxf5+ {[%clk 0:01:22.8]} 35... Kd7 {[%clk
0:00:51.5]} 36. Ne5+ {[%clk 0:01:22.8]} 36... Bxe5 {[%clk 0:00:52.2]} 37. Kxe5
{[%clk 0:01:23.6]} 37... Ke7 {[%clk 0:00:52.8]} 38. f6+ {[%clk 0:01:18.4]} 38...
Kd7 {[%clk 0:00:52.6]} 39. b3 {[%clk 0:01:09]} 39... Kc7 {[%clk 0:00:46.3]} 40.
c4 {[%clk 0:01:07.9]} 40... bxc4 {[%clk 0:00:44]} 41. bxc4 {[%clk 0:01:08]}
41... Kd7 {[%clk 0:00:43.1]} 42. c5 {[%clk 0:01:05.4]} 42... a5 {[%clk
0:00:42.3]} 43. a4 {[%clk 0:01:03.9]} 43... Kc7 {[%clk 0:00:42.8]} 44. Ke4
{[%clk 0:01:01.3]} 44... Kd8 {[%clk 0:00:39.7]} 45. Kf4 {[%clk 0:00:52.1]} 45...
Ke8 {[%clk 0:00:24.8]} 46. Kg5 {[%clk 0:00:46.7]} 46... Kf8 {[%clk 0:00:24.4]}
47. Kh5 {[%clk 0:00:42.4]} 47... Kg8 {[%clk 0:00:23.4]} 48. Kh6 {[%clk
0:00:40.9]} 48... Kh8 {[%clk 0:00:23.5]} 49. Kg5 {[%clk 0:00:41.2]} 49... Kh7
{[%clk 0:00:20.3]} 50. Kf5 {[%clk 0:00:41.2]} 50... Kh6 {[%clk 0:00:21]} 51. Ke5
{[%clk 0:00:41.4]} 51... Kg6 {[%clk 0:00:21.8]} 52. Kd6 {[%clk 0:00:41.9]} 52...
Kxf6 {[%clk 0:00:22.6]} 53. Kxc6 {[%clk 0:00:42.4]} 53... Ke5 {[%clk 0:00:22.8]}
54. Kb7 {[%clk 0:00:42.8]} 54... f5 {[%clk 0:00:23.2]} 55. c6 {[%clk 0:00:43.4]}
55... f4 {[%clk 0:00:23.9]} 56. c7 {[%clk 0:00:44.1]} 56... f3 {[%clk
0:00:24.7]} 57. c8=Q {[%clk 0:00:44.7]} 57... f2 {[%clk 0:00:25.6]} 58. Qc5+
{[%clk 0:00:44.5]} 1-0

[Event "Late-Titled-Tuesday-Blitz-May-07-2024"]
[Site "Chess.com"]
[Date "2024.05.07"]
[Round "4"]
[White "JG-17"]
[Black "Sacbutt"]
[Result "0-1"]
[WhiteElo "2556"]
[BlackElo "2331"]
[TimeControl "180+1"]
[EndTime "14:38:51 PDT"]
[Termination "Sacbutt won by resignation"]

1. d4 {[%clk 0:03:00.9]} 1... Nf6 {[%clk 0:02:58.1]} 2. c4 {[%clk 0:03:01.2]}
2... e6 {[%clk 0:02:58.6]} 3. Nf3 {[%clk 0:03:01.6]} 3... b6 {[%clk 0:02:59]} 4.
g3 {[%clk 0:03:02.1]} 4... Bb7 {[%clk 0:02:59.5]} 5. Bg2 {[%clk 0:03:02.6]} 5...
Be7 {[%clk 0:03:00.1]} 6. O-O {[%clk 0:03:03.1]} 6... O-O {[%clk 0:03:00.8]} 7.
Nc3 {[%clk 0:03:03.4]} 7... Ne4 {[%clk 0:03:01.5]} 8. Nxe4 {[%clk 0:03:01.9]}
8... Bxe4 {[%clk 0:03:02.4]} 9. b3 {[%clk 0:03:02.6]} 9... d6 {[%clk 0:03:01.3]}
10. Bb2 {[%clk 0:03:03.2]} 10... Nd7 {[%clk 0:03:01.2]} 11. Ne1 {[%clk
0:03:02.2]} 11... Bxg2 {[%clk 0:03:00.7]} 12. Nxg2 {[%clk 0:03:03.1]} 12... c5
{[%clk 0:03:00.2]} 13. e3 {[%clk 0:02:59.7]} 13... Qc7 {[%clk 0:02:59.3]} 14.
Nf4 {[%clk 0:02:57.9]} 14... Bf6 {[%clk 0:02:54.6]} 15. Qd2 {[%clk 0:02:56.3]}
15... g6 {[%clk 0:02:50.6]} 16. dxc5 {[%clk 0:02:54.9]} 16... dxc5 {[%clk
0:02:45.2]} 17. Rfd1 {[%clk 0:02:47.8]} 17... Rad8 {[%clk 0:02:40.7]} 18. Bxf6
{[%clk 0:02:33]} 18... Nxf6 {[%clk 0:02:40.4]} 19. Qc3 {[%clk 0:02:33.4]} 19...
Ne4 {[%clk 0:02:35]} 20. Qc2 {[%clk 0:02:33.7]} 20... Nf6 {[%clk 0:02:27.8]} 21.
h4 {[%clk 0:02:32.7]} 21... Rxd1+ {[%clk 0:02:23.2]} 22. Rxd1 {[%clk 0:02:32.3]}
22... Rd8 {[%clk 0:02:23.6]} 23. Kg2 {[%clk 0:02:18.9]} 23... Rxd1 {[%clk
0:02:19.3]} 24. Qxd1 {[%clk 0:02:18.9]} 24... Qd7 {[%clk 0:02:19.6]} 25. Qf3
{[%clk 0:02:14.2]} 25... Kg7 {[%clk 0:01:47.7]} 26. h5 {[%clk 0:02:13.1]} 26...
g5 {[%clk 0:01:34.4]} 27. Ne2 {[%clk 0:01:49.6]} 27... h6 {[%clk 0:01:26]} 28.
e4 {[%clk 0:01:44.2]} 28... Qd2 {[%clk 0:01:19.1]} 29. e5 {[%clk 0:01:44.1]}
29... Nd7 {[%clk 0:01:19.1]} 30. Qe4 {[%clk 0:01:33.3]} 30... Qxa2 {[%clk
0:00:55.1]} 31. Qe3 {[%clk 0:01:33]} 31... Qb2 {[%clk 0:00:51.9]} 32. f4 {[%clk
0:01:33.6]} 32... a5 {[%clk 0:00:48.9]} 33. fxg5 {[%clk 0:01:25.9]} 33... Nxe5
{[%clk 0:00:44.8]} 34. gxh6+ {[%clk 0:01:23.6]} 34... Kh7 {[%clk 0:00:45]} 35.
Kh3 {[%clk 0:01:21.3]} 35... Qa1 {[%clk 0:00:32.4]} 36. Kh4 {[%clk 0:01:16.1]}
36... f6 {[%clk 0:00:24.4]} 37. Qe4+ {[%clk 0:01:09]} 37... Kxh6 {[%clk
0:00:23.5]} 38. Nf4 {[%clk 0:01:05.5]} 38... Qg1 {[%clk 0:00:18.2]} 39. Nh3
{[%clk 0:00:59.9]} 39... Qd4 {[%clk 0:00:15.8]} 40. Qxd4 {[%clk 0:00:52.8]}
40... cxd4 {[%clk 0:00:16.7]} 41. Nf4 {[%clk 0:00:52.8]} 41... d3 {[%clk
0:00:15.8]} 42. Ng2 {[%clk 0:00:50.3]} 42... d2 {[%clk 0:00:10.7]} 43. Ne3
{[%clk 0:00:50.4]} 43... Nd3 {[%clk 0:00:09.1]} 44. Ng4+ {[%clk 0:00:38.2]}
44... Kg7 {[%clk 0:00:07.6]} 45. h6+ {[%clk 0:00:38.7]} 45... Kg6 {[%clk
0:00:07.7]} 46. h7 {[%clk 0:00:37.7]} 46... Kxh7 {[%clk 0:00:07]} 47. Nxf6+
{[%clk 0:00:38.3]} 47... Kg6 {[%clk 0:00:06.2]} 48. Ne4 {[%clk 0:00:37.9]} 48...
d1=Q {[%clk 0:00:05.7]} 0-1